[Event "67th Mexican-ch Open 2022"]
[Site "Chihuahua"]
[Date "2022.04.16"]
[Round "6.24"]
[White "Diaz Guerrero, Jesus Daniel"]
[Black "Paredes Guzman, Francisco Javier"]
[Result "1/2-1/2"]
[ECO "B92"]
[WhiteElo "1518"]
[BlackElo "1891"]
[Annotator "NA RC"]
[PlyCount "50"]
[EventDate "2022.04.12"]
[EventType "swiss"]
[EventCountry "MEX"]
[SourceTitle "playchess.com"]
[Source "ChessBase"]
[SourceQuality "1"]
[TimeControl "5400+30"]

1. e4 {[%emt 0:04:00]} c5 {[%emt 0:00:03]} 2. Nf3 {[%emt 0:00:10]} d6 {[%emt 0:00:03]} 3. d4 {[%emt 0:00:51]} cxd4 {[%emt 0:00:25]} 4. Nxd4 {[%emt 0:00:35]} Nf6 {[%emt 0:00:08]} 5. Nc3 {[%emt 0:00:32]} a6 {[%emt 0:00:03]} 6. Be2 {[%emt 0:00:12]} e5 {[%emt 0:00:04]} 7. Nb3 {[%emt 0:00:04]} Be6 {[%emt 0:01:36]} 8. f4 {[%emt 0:01:33]} exf4 {[%emt 0:00:54]} 9. Bxf4 {[%emt 0:00:09]} Be7 {[%emt 0:00:44]} 10. Qd3 {[%emt 0:01:11]} Nc6 {[%emt 0:03:13]} 11. O-O-O {[%emt 0:00:15]} Ne5 {[%emt 0:02:19]} 12. Qg3 {[%emt 0:01:16]} Qc7 {[%emt 0:08:44]} 13. Bxe5 {[%emt 0:05:16]} dxe5 {[%emt 0:00:04]} 14. Nd5 {[%emt 0:01:27]} Nxd5 {[%emt 0:05:52]} 15. exd5 {[%emt 0:00:10]} Bf5 {[%emt 0:00:04]} 16. Bd3 {[%emt 0:00:27]} Bxd3 {[%emt 0:00:35]} 17. Qxd3 {[%emt 0:01:21]} Bd6 {[%emt 0:00:08]} 18. Nd2 {[%emt 0:00:31]} O-O {[%emt 0:01:48]} 19. Rhf1 {[%emt 0:00:59]} Rad8 {[%emt 0:13:16]} 20. g4 {[%emt 0:03:47]} f6 {[%emt 0:05:55]} 21. Ne4 {[%emt 0:07:01]} Qe7 {[%emt 0:00:43]} 22. Rf3 {[%emt 0:01:53]} Rf7 {[%emt 0:01:31]} 23. Rdf1 {[%emt 1:08:20]} Rdf8 {[%emt 0:00:14]} 24. R3f2 {[%emt 0:00:00]} g6 {[%emt 0:15:30]} 25. h4 {[%emt 0:00:00]} f5 {[%emt 0:39:04]} 1/2-1/2

[Event "67th Mexican-ch Open 2022"]
[Site "Chihuahua"]
[Date "2022.04.16"]
[Round "6.25"]
[White "Ramirez Toledo, Ayleen Maribel"]
[Black "Avila Fraire, Ameyalli"]
[Result "1/2-1/2"]
[ECO "A04"]
[WhiteElo "1810"]
[BlackElo "1955"]
[Annotator "TA"]
[PlyCount "56"]
[EventDate "2022.04.12"]
[EventType "swiss"]
[EventCountry "MEX"]
[SourceTitle "playchess.com"]
[Source "ChessBase"]
[SourceQuality "1"]
[TimeControl "5400+30"]

{[%evp 9,56,0,7,0,0,-29,-16,-39,-35,-57,-34,-40,-35,-41,-24,-31,-28,-34,-35,-54,-18,-59,-28,-30,-24,-23,-12,-18,-17,-10,-14,-9,-9,-35,-18,-23,-24,-24,-24,-25,0,-24,0,-27,0,-21,0,-25,133]} 1. Nf3 {[%emt 0:00:02]} c5 {[%emt 0:04:52]} 2. g3 {[%emt 0:00:32]} Nc6 {[%emt 0:00:14]} 3. d4 {[%emt 0:00:24]} cxd4 {[%emt 0:00:06]} 4. Nxd4 {[%emt 0:00:04]} e5 {[%emt 0:00:10]} 5. Nxc6 {[%emt 0:01:02]} dxc6 {[%emt 0:00:11]} 6. Qxd8+ {[%emt 0:01:51] A04: Unusual lines after 1 Nf3 and King's Indian Attack.} Kxd8 {[%emt 0:00:08]} 7. Bg2 {[%emt 0:00:05]} Nf6 {[%emt 0:01:06]} 8. O-O {[%emt 0:00:44][%cal Bh1f1,Bf1d1,Bd1d2][%mdl 32] The position is equal.} Kc7 {[%emt 0:00:17]} 9. c4 {[%emt 0:01:38] [#]} Bc5 $146 {[%emt 0:03:19]} ({Predecessor:} 9... Be6 10. b3 Nd7 11. Bb2 f6 12. Nc3 h5 13. Ne4 h4 14. Rfd1 hxg3 15. hxg3 a5 {0-1 (31) Vinokur,L (1684)-Ashrafzianov,I (2004) Pardubice 2018}) 10. Nc3 {[%emt 0:02:42]} Be6 {[%emt 0:05:32]} 11. b3 {[%emt 0:01:19]} Nd7 {[%emt 0:03:12]} 12. Bb2 {[%emt 0:04:12]} f6 {[%emt 0:00:28]} 13. Rfd1 {[%emt 0:08:04]} a5 {[%emt 0:01:44]} 14. Na4 {[%emt 0:05:29][%cal Od1d7] [#] Threatens to win with Rxd7+!} Be7 {[%emt 0:03:39]} 15. Rd2 {[%emt 0:04:32]} Rhd8 {[%emt 0:09:55]} 16. Rad1 {[%emt 0:05:56]} Bb4 {[%emt 0:01:22]} 17. Bc3 {[%emt 0:04:41]} Bxc3 {[%emt 0:05:37]} 18. Nxc3 {[%emt 0:00:20]} Nc5 {[%emt 0:00:19]} 19. Rxd8 {[%emt 0:13:59]} Rxd8 {[%emt 0:00:07]} 20. Rxd8 {[%emt 0:00:07]} Kxd8 $11 {[%emt 0:00:04][%mdl 4096] Endgame KBN-KBN} 21. Kf1 {[%emt 0:00:37]} Kc7 {[%emt 0:00:28]} 22. Ke1 {[%emt 0:01:08]} Kd6 {[%emt 0:12:49]} 23. Kd2 {[%emt 0:04:20]} Bf5 {[%emt 0:02:02]} 24. Ke3 {[%emt 0:15:31]} Bc2 {[%emt 0:11:31]} 25. Kd2 {[%emt 0:00:23]} Bf5 {[%emt 0:00:30]} 26. Ke3 {[%emt 0:00:13]} Bc2 {[%emt 0:09:11]} 27. Kd2 {[%emt 0:00:15]} Bf5 {[%emt 0:08:26]} 28. Ke3 {[%emt 0:00:15]} e4 $2 {[%emt 0:17:11] Weighted Error Value: White=0.09 (flawless) /Black=0.12 (very precise)} ({Black should play} 28... h6 $11) 1/2-1/2

[Event "67th Mexican-ch Open 2022"]
[Site "Chihuahua"]
[Date "2022.04.16"]
[Round "6.26"]
[White "Guillen Cristobal, Sandra N"]
[Black "Mora Velasco, Alma Jaqueline"]
[Result "1-0"]
[ECO "B01"]
[WhiteElo "1933"]
[BlackElo "1780"]
[Annotator "TA"]
[PlyCount "99"]
[EventDate "2022.04.12"]
[EventType "swiss"]
[EventCountry "MEX"]
[SourceTitle "playchess.com"]
[Source "ChessBase"]
[SourceQuality "1"]
[TimeControl "5400+30"]

{[%evp 9,99,45,85,58,52,62,55,10,11,6,6,6,5,0,40,0,79,56,67,65,93,76,199,190,180,197,191,186,240,166,162,163,169,166,191,181,193,196,230,234,247,243,246,227,245,241,251,256,265,270,271,271,271,262,262,260,310,289,380,355,393,387,389,374,399,392,546,534,475,356,450,381,389,377,377,358,414,402,590,584,783,786,1608,1333,29978,29980,29979,29980,29972,29973,29986,29987]} 1. e4 {[%emt 0:00:03]} d5 {[%emt 0:00:10]} 2. exd5 {[%emt 0:00:05]} Qxd5 {[%emt 0:00:07]} 3. Nc3 {[%emt 0:01:29]} Qa5 {[%emt 0:00:17]} 4. Nf3 {[%emt 0:00:25]} Nf6 {[%emt 0:01:11]} 5. Bc4 {[%emt 0:01:17]} g6 {[%emt 0:04:34]} 6. O-O {[%emt 0:00:16] B01: Scandinavian Defence.} Bg7 {[%emt 0:00:13]} 7. d4 {[%emt 0:02:37]} O-O {[%emt 0:02:25]} 8. Qe2 {[%emt 0:01:42] [#] White is slightly better.} Bg4 $146 {[%emt 0:05:10]} ({Predecessor:} 8... e6 9. Be3 c6 10. Rfd1 b5 11. Bd3 Nbd7 12. Ne5 Bb7 13. f4 Rfd8 14. g4 Qc7 {1-0 (58) Algunerhan,S (1688)-Guven,O (1889) Canakkale 2016}) 9. h3 {[%emt 0:04:05]} Bxf3 {[%emt 0:01:48]} 10. Qxf3 {[%emt 0:00:12]} Nc6 {[%emt 0:01:17]} 11. Be3 {[%emt 0:01:31]} Qb4 {[%emt 0:03:46]} 12. Bb3 {[%emt 0:00:33]} e5 {[%emt 0:13:30]} (12... Nxd4 $11 13. Bxd4 Qxd4) 13. dxe5 {[%emt 0:05:03]} Nxe5 {[%emt 0:00:42]} 14. Qe2 {[%emt 0:02:59]} Qe7 {[%emt 0:08:15]} 15. Rfe1 {[%emt 0:00:51]} Nc6 {[%emt 0:02:50] Loses the game.} (15... Rfe8 $16) 16. Qb5 $18 {[%emt 0:00:19] aiming for Bc5.} Rfe8 {[%emt 0:05:11]} 17. Qxb7 {[%emt 0:01:09]} Na5 {[%emt 0:01:12]} 18. Qb5 {[%emt 0:01:11]} Qe5 {[%emt 0:03:47]} (18... Nxb3 $142 19. axb3 Ne4) 19. Qxe5 {[%emt 0:01:10]} Rxe5 {[%emt 0:00:07]} 20. Bf4 {[%emt 0:00:43] This bishop pair is nice.} Rxe1+ {[%emt 0:01:16]} 21. Rxe1 {[%emt 0:00:08]} c5 {[%emt 0:03:27]} 22. Re7 $36 {[%emt 0:01:35][%mdl 2048] White is on the roll.} Nxb3 {[%emt 0:03:31]} 23. axb3 {[%emt 0:00:50]} a6 {[%emt 0:03:04]} 24. Rc7 {[%emt 0:00:22]} Bf8 {[%emt 0:01:31]} 25. Be3 {[%emt 0:00:51]} Rd8 {[%emt 0:02:09]} 26. Bxc5 {[%emt 0:06:51]} Bxc5 {[%emt 0:00:41]} 27. Rxc5 {[%emt 0:00:10][%mdl 4096] Endgame KRN-KRN} Rd2 {[%emt 0:00:26]} 28. Rc6 {[%emt 0:00:14][%csl LRa6,LRf6]} Nh5 {[%emt 0:01:43]} 29. Ne4 {[%emt 0:00:44]} ({Don't do} 29. Rxa6 $6 Rxc2 30. Ra2 Nf4 $16) 29... Rd1+ {[%emt 0:01:02]} 30. Kh2 {[%emt 0:00:10]} Rb1 {[%emt 0:00:44]} 31. Rxa6 {[%emt 0:00:24] Black must now prevent c4.} Rxb2 {[%emt 0:00:08]} 32. Rc6 {[%emt 0:00:13]} h6 {[%emt 0:02:44]} 33. Rc4 {[%emt 0:01:33] [#] Strongly threatening g4.} f5 {[%emt 0:01:12]} 34. Nc5 {[%emt 0:00:17]} Kf7 {[%emt 0:00:29]} 35. Nd3 {[%emt 0:00:15]} Rb1 {[%emt 0:00:49]} 36. b4 {[%emt 0:00:39][%cal Bb3b4,Bb4b5][%mdl 32]} g5 {[%emt 0:05:12]} 37. Rd4 {[%emt 0:00:56]} Ke6 {[%emt 0:00:31]} 38. c4 {[%emt 0:00:28]} Nf6 {[%emt 0:00:35]} 39. f3 {[%emt 0:02:09] Inhibits Ne4.} h5 {[%emt 0:00:36]} 40. b5 {[%emt 0:01:30]} h4 {[%emt 0:01:03]} 41. g4 {[%emt 1:03:01] Prevents Nh5.} hxg3+ {[%emt 0:02:01]} 42. Kxg3 {[%emt 0:00:00]} Nh5+ {[%emt 0:01:13]} 43. Kf2 {[%emt 0:00:00]} f4 {[%emt 0:00:53]} (43... Nf6 $142 44. h4 g4) 44. Rd5 {[%emt 0:00:00]} Kf6 {[%emt 0:01:05]} 45. h4 {[%emt 0:00:00][%cal Bh3h4,Bh4g5][%mdl 32]} Ra1 {[%emt 0:05:36]} 46. hxg5+ {[%emt 0:00:00]} Kg6 {[%emt 0:00:39]} 47. b6 {[%emt 0:00:00] White mates.} Ra2+ {[%emt 0:00:23]} 48. Ke1 {[%emt 0:00:00]} Ra1+ {[%emt 0:01:38]} 49. Kd2 {[%emt 0:00:00]} Rb1 {[%emt 0:00:19]} 50. Rb5 {[%emt 0:00:00] Weighted Error Value: White=0.12 (very precise) /Black=0.44} 1-0

[Event "67th Mexican-ch Open 2022"]
[Site "Chihuahua"]
[Date "2022.04.16"]
[Round "6.27"]
[White "Real Pereyra, Diana Carime"]
[Black "Flores Rodriguez, Astrid Aphril"]
[Result "1/2-1/2"]
[ECO "B43"]
[WhiteElo "2049"]
[BlackElo "1662"]
[Annotator "TA"]
[PlyCount "82"]
[EventDate "2022.04.12"]
[EventType "swiss"]
[EventCountry "MEX"]
[SourceTitle "playchess.com"]
[Source "ChessBase"]
[SourceQuality "1"]
[TimeControl "5400+30"]

{[%evp 9,82,27,31,12,25,-4,-3,-7,-6,-8,0,0,0,-12,-8,-31,0,-55,-51,-116,-116,-127,-99,-127,-95,-99,-101,-149,-63,-148,-139,-136,-86,-170,-120,-154,-122,-123,-121,-135,-102,-210,-80,-82,-16,-17,-12,-48,-45,-251,-252,-393,-223,-549,-301,-297,-283,-286,-276,-672,-659,-4982,-2413,-5820,-5631,-29986,-29987,-29990,0,0,0,-29990,-1290,-29990,-29991]} 1. e4 {[%emt 0:02:56]} c5 {[%emt 0:00:05]} 2. Nc3 {[%emt 0:01:35]} e6 {[%emt 0:00:16]} 3. Nf3 {[%emt 0:00:19]} a6 {[%emt 0:00:32]} 4. d4 {[%emt 0:00:29]} cxd4 {[%emt 0:00:10]} 5. Nxd4 {[%emt 0:00:10]} Qc7 {[%emt 0:00:11]} 6. Nb3 {[%emt 0:00:26] B43: Sicilian: Kan Variation: 5 Nc3.} Nf6 {[%emt 0:01:12]} 7. Bd3 {[%emt 0:01:04]} b5 {[%emt 0:00:58]} 8. O-O {[%emt 0:01:35] The position is equal.} Bb7 {[%emt 0:00:21]} 9. Qe2 {[%emt 0:04:12]} d6 {[%emt 0:01:24]} 10. f4 {[%emt 0:00:37]} Nbd7 {[%emt 0:03:08]} 11. Bd2 {[%emt 0:01:27]} Be7 {[%emt 0:04:29]} 12. Rae1 {[%emt 0:10:29]} (12. a4 $5 {[%cal Ra4b5]}) 12... e5 {[%emt 0:04:42]} 13. f5 {[%emt 0:03:04]} (13. a3 $11) 13... O-O {[%emt 0:05:06] [#]} 14. Qf3 $146 {[%emt 0:06:06]} (14. a3 $15) ({Predecessor:} 14. Kh1 Rfd8 15. Nd5 Bxd5 16. Ba5 Nb6 17. exd5 Qb7 18. Bxb6 Qxb6 19. Qf3 h6 20. c3 {0-1 (48) Danaci,E (1705)-Karaoglan,D (2130) Konya 2017}) 14... b4 $1 $17 {[%emt 0:04:48]} 15. Nd1 {[%emt 0:02:13]} d5 {[%emt 0:00:59] Inhibits c4.} 16. Nf2 {[%emt 0:09:29]} Rfd8 {[%emt 0:12:06]} 17. exd5 {[%emt 0:09:37]} Bxd5 {[%emt 0:06:38]} 18. Qh3 {[%emt 0:03:51]} (18. Qg3 $142) 18... Nc5 {[%emt 0:05:29]} (18... a5 $1 $17 {Threatens to win with ...a4.} 19. Be3 e4) 19. Be3 {[%emt 0:11:16]} (19. Nxc5 $15 Bxc5 20. Bg5) 19... Nxd3 {[%emt 0:06:54]} 20. cxd3 {[%emt 0:02:43]} Qc2 {[%emt 0:06:56]} ({Black should play} 20... a5 21. Rc1 Qb8) 21. Bb6 {[%emt 0:05:04]} (21. Rb1 $17) 21... Rd7 {[%emt 0:04:07]} ({Stronger than} 21... Qxb2 22. Bxd8 Bxd8 23. d4 exd4 24. Nc1 $17) ({Better is} 21... Rdb8 $19 22. Rxe5 Rxb6 23. Rxe7 Qxb2) 22. Rxe5 {[%emt 0:03:06]} Bxb3 {[%emt 0:02:27]} 23. axb3 {[%emt 0:00:16]} Qxb2 {[%emt 0:01:09]} 24. Rfe1 {[%emt 0:05:24]} Rc8 {[%emt 0:02:55][%cal Oh7h6]} 25. g4 {[%emt 0:06:32] [#]} (25. d4 $17 {was worth a try.}) 25... Bd6 {[%emt 0:10:40]} (25... h6 $1 $19 {has better winning chances. Hoping for ...Bd6.} 26. d4 (26. Rxe7 Rxe7 27. Rxe7 Nd5 $17) 26... Bd6) 26. R5e2 {[%emt 0:00:39] [#]} Qc3 {[%emt 0:01:21]} (26... Qxb3 $2 27. g5 Re7 28. gxf6 (28. Rxe7 Bxe7 29. Bd4 Bc5 $18) 28... Rxe2 29. Rxe2 $18) (26... Rc2 $1 $17 {[%cal Rc2e2]} 27. Rxc2 Qxc2) 27. g5 $11 {[%emt 0:02:09]} Nd5 {[%emt 0:06:07]} 28. g6 {[%emt 0:03:49]} h6 {[%emt 0:02:07]} 29. Re8+ $2 {[%emt 0:02:38]} (29. Be3 $15) 29... Rxe8 $19 {[%emt 0:00:09]} 30. Rxe8+ {[%emt 0:00:02]} Bf8 {[%emt 0:00:19][%cal Bd6f8,Bf8c5,Bc5d4][%mdl 32]} 31. Bd8 $2 {[%emt 0:01:42]} (31. Be3 {was the crucial defense.} Re7 32. gxf7+ Rxf7 33. Qf3) 31... Qc1+ {[%emt 0:02:41]} 32. Qf1 {[%emt 0:00:14]} Qc8 {[%emt 0:00:42]} 33. gxf7+ {[%emt 0:00:11]} Kxf7 {[%emt 0:02:02]} 34. Qe2 {[%emt 0:00:03]} (34. Qe1 Nf4 35. Rxf8+ Kxf8 36. Qxb4+ Kg8 37. Qxf4 Qxd8 38. Qc4+ Kh7 39. Qg4) 34... Qc1+ {[%emt 0:01:28]} 35. Nd1 {[%emt 0:00:05][%csl Ge8,Gf5][%cal Re2e6]} Bc5+ {[%emt 0:00:18]} 36. d4 {[%emt 0:01:01]} Bxd4+ {[%emt 0:00:21]} 37. Kh1 {[%emt 0:00:01]} Nf4 {[%emt 0:01:35]} 38. Re7+ {[%emt 0:00:32]} Kf8 {[%emt 0:01:05]} 39. Re8+ {[%emt 0:00:28]} Kf7 {[%emt 0:00:04]} 40. Re7+ {[%emt 0:00:05]} Kg8 {[%emt 0:02:29]} (40... Rxe7 $142 41. Qxe7+ Kg8 42. Qe8+ Kh7 43. Qg6+ Nxg6 44. fxg6+ Kxg6 45. h4 Qxd1+ 46. Kh2 Qe2+ 47. Kh3 Qf1+ 48. Kg4 h5+ 49. Kg3 Be5#) 41. Re8+ Kh7 {[%mdl 32768] Weighted Error Value: White=0.98/Black=0.50. An unexpected result.} 1/2-1/2

[Event "67th Mexican-ch Open 2022"]
[Site "Chihuahua"]
[Date "2022.04.16"]
[Round "7.1"]
[White "Cori, Jorge"]
[Black "Obregon Rivero, Juan Carlos"]
[Result "1/2-1/2"]
[ECO "A36"]
[WhiteElo "2650"]
[BlackElo "2536"]
[Annotator "TA"]
[PlyCount "52"]
[EventDate "2022.04.12"]
[EventType "swiss"]
[EventCountry "MEX"]
[SourceTitle "playchess.com"]
[Source "ChessBase"]
[SourceQuality "1"]
[TimeControl "5400+30"]

{[%evp 16,52,16,11,4,0,13,0,0,-13,9,0,4,0,0,-9,-18,-10,-16,-16,11,16,6,0,0,0,0,0,0,0,0,0,0,0,0,0,0,0,0]} 1. c4 {[%emt 0:00:18]} g6 {[%emt 0:01:33]} 2. g3 {[%emt 0:00:21]} Bg7 {[%emt 0:00:13]} 3. Bg2 {[%emt 0:00:05]} c5 {[%emt 0:01:05]} 4. Nc3 {[%emt 0:00:47]} Nc6 {[%emt 0:00:26]} 5. Nf3 {[%emt 0:00:06]} d6 {[%emt 0:01:21]} 6. O-O {[%emt 0:00:11]} e6 {[%emt 0:01:54]} 7. a3 {[%emt 0:00:14]} Nge7 {[%emt 0:01:28]} 8. Rb1 {[%emt 0:00:21]} O-O {[%emt 0:04:05]} 9. b4 {[%emt 0:01:16] The position is equal.} b6 {[%emt 0:14:27] A36: Symmetrical English vs ...g6: 4 Bg2 Bg7.} 10. Bb2 {[%emt 0:09:16]} Bb7 {[%emt 0:01:33] [#]} 11. Ba1 $146 {[%emt 0:05:29]} ({Predecessor:} 11. d3 Qd7 12. bxc5 dxc5 13. Qd2 Rad8 14. Ne4 e5 15. Ba1 Ba8 16. Nc3 h6 17. Rfd1 {1-0 (34) Belous,V (2532)-Martinez Alcantara,J (2623) Chess.com INT 2020}) 11... Qd7 {[%emt 0:01:15]} 12. d3 {[%emt 0:00:08]} Rad8 {[%emt 0:03:12]} 13. e3 {[%emt 0:04:37]} Ne5 {[%emt 0:06:22]} 14. Nxe5 {[%emt 0:05:41]} Bxe5 {[%emt 0:00:26]} 15. Qe2 {[%emt 0:01:03]} Bxg2 {[%emt 0:08:17]} 16. Kxg2 {[%emt 0:00:04]} Bg7 {[%emt 0:00:54]} 17. Rfd1 {[%emt 0:01:11]} cxb4 {[%emt 0:13:32]} 18. axb4 {[%emt 0:00:48]} d5 {[%emt 0:00:08]} 19. cxd5 {[%emt 0:02:23]} Nxd5 {[%emt 0:00:33]} 20. Nxd5 {[%emt 0:05:40]} Qxd5+ {[%emt 0:00:08]} 21. Qf3 {[%emt 0:00:03]} Qb5 {[%emt 0:02:57]} 22. Bxg7 {[%emt 0:00:18]} Kxg7 {[%emt 0:00:02]} 23. d4 {[%emt 0:00:09]} Rd7 {[%emt 0:00:29]} 24. Rdc1 {[%emt 0:01:01]} e5 {[%emt 0:02:36]} 25. dxe5 $1 {[%emt 0:02:34]} ({But not} 25. Rc6 exd4 26. Qf6+ Kg8 27. exd4 {[#]} Rxd4 $1 $17) 25... Qxe5 {[%emt 0:00:42]} 26. Rc6 {[%emt 0:00:57]} Re8 {[%emt 0:01:48] An interesting draw.  Weighted Error Value: White=0.03 (flawless) /Black=0.04 (flawless)} 1/2-1/2

[Event "67th Mexican-ch Open 2022"]
[Site "Chihuahua"]
[Date "2022.04.16"]
[Round "7.2"]
[White "Mareco, Sandro"]
[Black "Salinas Herrera, Pablo"]
[Result "1-0"]
[ECO "D52"]
[WhiteElo "2643"]
[BlackElo "2517"]
[Annotator "TA"]
[PlyCount "61"]
[EventDate "2022.04.12"]
[EventType "swiss"]
[EventCountry "MEX"]
[SourceTitle "playchess.com"]
[Source "ChessBase"]
[SourceQuality "1"]
[TimeControl "5400+30"]

{[%evp 13,61,11,17,6,22,14,6,14,9,10,8,9,9,8,6,16,8,0,0,3,212,214,209,213,310,298,362,156,159,156,244,233,239,233,729,753,860,846,1208,1034,1253,1243,1227,1217,1510,1191,1886,1079,29995,2741]} 1. c4 {[%emt 0:00:02]} Nf6 {[%emt 0:02:14]} 2. Nf3 {[%emt 0:00:20]} c6 {[%emt 0:00:07]} 3. d4 {[%emt 0:00:10]} d5 {[%emt 0:00:04]} 4. Nc3 {[%emt 0:00:04]} e6 {[%emt 0:00:21]} 5. Bg5 {[%emt 0:00:06]} Nbd7 {[%emt 0:00:25]} 6. e3 {[%emt 0:00:05]} Qa5 {[%emt 0:00:09]} 7. Nd2 {[%emt 0:00:07]} Bb4 {[%emt 0:01:30]} 8. Rc1 {[%emt 0:00:09] D52: Queen's Gambit Declined: Cambridge Springs Variation.} Ne4 {[%emt 0:04:08]} 9. Ndxe4 {[%emt 0:00:05]} dxe4 {[%emt 0:00:07]} 10. Bh4 {[%emt 0:00:03] The position is equal.} Qxa2 {[%emt 0:05:10]} 11. Qc2 {[%emt 0:00:04]} Nb6 $1 {[%emt 0:02:28]} 12. Be2 {[%emt 0:00:03] aiming for 0-0.} Na4 $1 {[%emt 0:02:30]} 13. O-O {[%emt 0:00:06]} Bxc3 {[%emt 0:00:36]} 14. bxc3 {[%emt 0:00:06]} Nxc3 {[%emt 0:01:02]} 15. Qxc3 {[%emt 0:00:03]} Qxe2 {[%emt 0:00:07]} 16. Qa3 {[%emt 0:00:04][%csl Gh4][%cal Ra3e7] [#]} c5 $146 {[%emt 0:16:55] Loses the game.} (16... f6 $11 {and Black is okay.}) ({Predecessor:} 16... f6 17. f3 c5 18. Rfe1 Qd3 19. Qxc5 exf3 20. e4 Rf8 21. Qh5+ g6 22. Qb5+ Kf7 {½-½ (33) Basso,P (2551)-Mastrovasilis,A (2523) Thessaloniki 2021}) 17. Qxc5 $18 {[%emt 0:17:10][%csl Gh4][%cal Rc5e7]} f6 {[%emt 0:00:06] [#]} 18. h3 $40 {[%emt 0:40:51][%mdl 1152] Against Qg4. White has strong compensation. White wants a kill.} g5 {[%emt 0:40:35]} (18... h5 $142 19. Rfe1 Qb2) 19. Bg3 {[%emt 0:00:10]} Rf8 {[%emt 0:00:19]} 20. Qb5+ {[%emt 0:12:28]} (20. Bd6 $18 {and the rest is easy.} Rf7 {[#]} 21. Bb8 $1) 20... Kf7 $16 {[%emt 0:00:26]} 21. Rce1 {[%emt 0:00:06] &Bianco is more active.} Qd3 {[%emt 0:01:32]} (21... Qa2 $16 22. f4 a6) 22. f4 $18 {[%emt 0:04:31]} exf3 {[%emt 0:04:37]} 23. Rxf3 {[%emt 0:00:05] Qxg5 is the strong threat.} Kg6 {[%emt 0:01:51]} (23... Kg8 $2 24. Bd6 Qg6 25. Bxf8 Kxf8 26. e4 $18) (23... Qg6 24. Bd6 Rd8) 24. Bd6 {[%emt 0:02:10]} a6 {[%emt 0:00:36]} 25. Qb6 {[%emt 0:00:08]} Rg8 {[%emt 0:03:25]} 26. Qc7 {[%emt 0:06:59]} f5 {[%emt 0:03:43]} 27. Be5 {[%emt 0:01:10] White threatens Qe7 and mate.} Qe4 {[%emt 0:00:25]} 28. Qe7 {[%emt 0:00:40] Qf6+ would kill now.} Kh6 {[%emt 0:01:33]} 29. Qf7 {[%emt 0:02:35] Threatening mate with h4.} Rg6 {[%emt 0:00:23]} 30. Bd6 {[%emt 0:00:15] Intending Bf8+ and mate.} g4 {[%emt 0:01:08]} 31. Bf4+ {[%emt 0:00:22] Weighted Error Value: White=0.19 (very precise) /Black=0.81} (31. Bf8+ $142 Kg5 32. Qe7+ Kh5 33. Qxh7+ Kg5 34. h4+ Kf6 35. Qe7#) 1-0

[Event "67th Mexican-ch Open 2022"]
[Site "Chihuahua"]
[Date "2022.04.16"]
[Round "7.3"]
[White "Fernandez Hernandez, Arturo A."]
[Black "Hernandez Guerrero, Gilberto"]
[Result "1/2-1/2"]
[ECO "A38"]
[WhiteElo "2376"]
[BlackElo "2564"]
[Annotator "TA"]
[PlyCount "55"]
[EventDate "2022.04.12"]
[EventType "swiss"]
[EventCountry "MEX"]
[SourceTitle "playchess.com"]
[Source "ChessBase"]
[SourceQuality "1"]
[TimeControl "5400+30"]

{[%evp 18,55,22,28,16,20,19,22,19,0,22,10,23,0,0,0,0,0,0,0,0,0,0,0,0,0,7,0,47,60,52,56,70,61,67,4,4,-145,83,-70]} 1. d4 {[%emt 0:00:35]} Nf6 {[%emt 0:00:24]} 2. Nf3 {[%emt 0:00:20]} g6 {[%emt 0:01:01]} 3. c4 {[%emt 0:00:51]} Bg7 {[%emt 0:00:10]} 4. g3 {[%emt 0:00:12]} O-O {[%emt 0:00:18]} 5. Bg2 {[%emt 0:00:05]} c5 {[%emt 0:01:48]} 6. O-O {[%emt 0:06:34]} cxd4 {[%emt 0:00:22]} 7. Nxd4 {[%emt 0:00:02]} Nc6 {[%emt 0:00:07][%cal Bb8c6,Bc6e5,Be5g4][%mdl 32]} 8. Nc3 {[%emt 0:00:25]} Qa5 {[%emt 0:00:31]} 9. Nc2 {[%emt 0:03:01] 9.e3 is a critical line.} d6 {[%emt 0:01:08]} 10. Nd5 {[%emt 0:02:26]} (10. e4 {is interesting.} Bg4 11. f3 Bd7 12. Rf2) 10... Nxd5 {[%emt 0:03:04] A38: Symmetrical English vs ...g6: 4 Bg2 Bg7 5 Nf3 Nf6.} 11. cxd5 {[%emt 0:00:16] [#] Threatens to win with Bd2.} Ne5 {[%emt 0:00:14]} 12. Bd2 {[%emt 0:02:14]} Qb6 {[%emt 0:01:58] The position is equal.} 13. Bc3 {[%emt 0:02:58]} Bd7 {[%emt 0:03:45]} 14. Bd4 {[%emt 0:05:23]} Qa6 {[%emt 0:00:35]} 15. f4 {[%emt 0:00:31]} Ng4 {[%emt 0:01:05]} 16. Bxg7 {[%emt 0:00:09]} Kxg7 {[%emt 0:00:16]} 17. Qd4+ {[%emt 0:00:12] [#]} Nf6 $146 {[%emt 0:02:21]} ({Predecessor:} 17... Kg8 18. Bf3 Rfc8 19. Ne3 Nxe3 20. Qxe3 Qb6 21. Qxb6 axb6 22. Rfc1 h5 23. Kf2 Bg4 24. a3 Bxf3 25. Kxf3 {½-½ (39) Dvirnyy,D (2568)-Zvjaginsev,V (2659) Rhodes 2013}) 18. e4 {[%emt 0:01:04] [#] aiming for e5.} Rfc8 {[%emt 0:04:37]} 19. Ne3 {[%emt 0:07:48][%cal Bc2e3,Be3d1,Bd1c3][%mdl 32] Hoping for e5.} Qb6 {[%emt 0:00:21]} 20. Qxb6 {[%emt 0:00:33]} axb6 {[%emt 0:00:07]} 21. a3 {[%emt 0:04:51]} Rc5 {[%emt 0:19:47]} 22. Rfc1 {[%emt 0:06:20]} Bb5 {[%emt 0:13:00]} (22... Ra4 $11 {should be considered.}) 23. Nd1 $14 {[%emt 0:10:07]} h5 {[%emt 0:11:53][%cal Bh7h5,Bh5h4][%mdl 32]} 24. Nc3 {[%emt 0:02:33]} Bd7 {[%emt 0:04:21][%cal Oh5h4]} 25. h3 {[%emt 0:02:21]} Rac8 {[%emt 0:29:47][%cal Oh5h4]} 26. Kf2 ({White should try} 26. Re1 $14) 26... h4 $11 27. Kg1 (27. g4 $11) 27... g5 $2 {[%emt 0:01:00]} (27... hxg3 $17 {And now ...Nh5 would win.} 28. Rf1 Rc4) 28. Rd1 $2 {Weighted Error Value: White=0.24 (precise) /Black=0.30} (28. fxg5 $16 Nh5 29. gxh4) 1/2-1/2